[Event "45th FIDE Olympiad 2024"]
[Site "Budapest"]
[Date "2024.09.14"]
[Round "4.44"]
[White "Idani, Pouya"]
[Black "Olsen, Filip Boe"]
[Result "1-0"]
[ECO "B12"]
[WhiteElo "2599"]
[BlackElo "2441"]
[Annotator "TA"]
[PlyCount "77"]
[EventDate "2024.09.05"]
[EventType "team-tourn"]
[EventCountry "HUN"]
[SourceTitle "playchess.com"]
[Source "ChessBase"]
[SourceQuality "1"]
[WhiteTeam "Iran"]
[BlackTeam "Denmark"]
[WhiteTeamCountry "IRI"]
[BlackTeamCountry "DEN"]
[TimeControl "40/5400+30:1800+30"]

{[%evp 9,77,18,34,14,40,42,33,14,26,20,28,18,22,-4,7,4,5,0,-8,0,11,4,11,30,15,37,29,29,20,20,34,51,72,58,55,26,27,20,88,0,0,0,0,0,0,0,0,0,0,0,0,0,21,8,8,23,54,58,54,38,44,27,20,21,29984,29985,29985,29986,29986,29986]} 1. e4 {[%emt 0:00:03]} c6 {[%emt 0:00:13]} 2. d4 {[%emt 0:00:06]} d5 {[%emt 0:00:11]} 3. e5 {[%emt 0:00:04]} c5 {[%emt 0:00:12]} 4. Nf3 {[%emt 0:00:06]} Bg4 {[%emt 0:00:23]} 5. dxc5 {[%emt 0:00:07]} Nc6 {[%emt 0:00:11]} 6. c3 {[%emt 0:00:05]} e6 {[%emt 0:00:20]} 7. Be3 {[%emt 0:00:46]} a6 {[%emt 0:00:22]} 8. Nbd2 {[%emt 0:01:11] White is slightly better.} Nxe5 $1 {[%emt 0:00:32]} 9. b4 {[%emt 0:02:05]} Be7 {[%emt 0:01:28]} 10. Be2 {[%emt 0:03:00]} Nc6 {[%emt 0:02:05]} 11. a4 {[%emt 0:03:27]} Bf6 {[%emt 0:06:54]} 12. Rc1 {[%emt 0:08:54]} Nge7 {[%emt 0:08:05]} 13. b5 {[%emt 0:23:47]} axb5 {[%emt 0:13:03]} 14. axb5 {[%emt 0:00:08]} Bxf3 {[%emt 0:00:24]} 15. Nxf3 {[%emt 0:01:13]} Ne5 {[%emt 0:00:49]} 16. O-O {[%emt 0:06:00]} O-O {[%emt 0:02:55]} 17. Nxe5 {[%emt 0:06:23]} Bxe5 {[%emt 0:00:03]} 18. Bd3 {[%emt 0:00:06][%cal Od3h7]} g6 {[%emt 0:10:18][%cal Bg7g6,Bg6f5][%mdl 32]} 19. Qb3 {[%emt 0:06:15] Against Ra3} Qc7 {[%emt 0:15:18]} 20. g3 {[%emt 0:03:49]} Nf5 {[%emt 0:03:51]} 21. Bxf5 {[%emt 0:00:18]} gxf5 {[%emt 0:00:09]} 22. Bd4 {[%emt 0:07:06]} Bg7 {[%emt 0:05:19]} 23. Rfd1 {[%emt 0:03:04]} Rfc8 {[%emt 0:03:02] [#]} (23... Rfd8 $11 {remains equal.}) 24. c6 {[%emt 0:04:45]} bxc6 $11 {[%emt 0:10:26]} 25. b6 {[%emt 0:00:05]} Qb7 {[%emt 0:03:07] And now ...c5 would win.} 26. Bxg7 {[%emt 0:00:19]} Kxg7 {[%emt 0:00:01]} 27. c4 {[%emt 0:00:09]} Rcb8 {[%emt 0:03:04]} 28. c5 {[%emt 0:03:51]} Qe7 {[%emt 0:00:37]} 29. Rd4 {[%emt 0:01:27]} Qf6 {[%emt 0:01:38]} 30. Ra4 {[%emt 0:00:26]} e5 {[%emt 0:02:53][%cal Be6e5,Be5e4][%mdl 32]} 31. Rca1 {[%emt 0:02:22]} Rxa4 {[%emt 0:00:33]} 32. Rxa4 {[%emt 0:00:12][%mdl 4096] Endgame. KQR-KQR} e4 {[%emt 0:00:51]} 33. Qe3 {[%emt 0:03:32][%mdl 1024] Qf4 would now be deadly. White has compensation.} (33. b7 Qe7 (33... f4 $2 34. Ra8 $18) 34. Ra7 d4 $17 (34... Qxc5 $2 35. Ra8 $18)) 33... Rd8 $1 {[%emt 0:04:36]} 34. Qf4 {[%emt 0:05:19] Hoping for b7.} d4 $1 {[%emt 0:00:27][%cal Bd5d4,Bd4d3][%mdl 32]} 35. b7 {[%emt 0:00:56] Threatens to win with Ra8.} d3 $1 {[%emt 0:00:08] White must now prevent ...d2.} 36. Ra2 $36 {[%emt 0:01:12][%mdl 2048] White has the initiative.} (36. b8=R d2 37. Rb1 (37. Rxd8 Qxd8 38. Ra1 d1=Q+ 39. Rxd1 Qxd1+ 40. Kg2 Qd5 $15) 37... d1=R+ (37... d1=B $2 38. Ra2 $18) (37... d1=Q+ 38. Rxd1 Rxd1+ 39. Kg2 $15) 38. Rxd1 Rxd1+ 39. Kg2 Rd5 $15) 36... Qd4 $2 {[%emt 0:03:00][%mdl 8192]} (36... e3 $11 37. Qxe3 (37. b8=B $2 d2 $19) 37... Rb8) 37. Qg5+ {[%emt 0:00:25] White mates.} ({Stronger than} 37. b8=R Rxb8 38. Qxb8 d2 $15 (38... Qxc5 $2 {is the wrong capture.} 39. Qb2+ Kg6 40. Ra8 $18) (38... Qxc5 $2 39. Qb2+ Kg6 40. Ra8 $18)) 37... Kf8 {[%emt 0:00:20] [#]} 38. Qxd8+ $3 {[%emt 0:01:35][%mdl 512]} Qxd8 {[%emt 0:00:04]} 39. Ra8 {[%emt 0:00:03] Weighted Error Value: White=0.07 (flawless) /Black=0.25 (precise) .  Loses game:     	---       	Black=1      Mistake:       	White=1     	Black=1      Inaccurate:     	White=2     	Black=1      OK:         	White=14    	Black=12     Best:        	White=1     	---        Strong:       	---       	Black=4} 1-0

[Event "45th FIDE Olympiad 2024"]
[Site "Budapest"]
[Date "2024.09.14"]
[Round "4.44"]
[White "Daniel, Cyrus"]
[Black "Van Delden, Johan"]
[Result "1-0"]
[ECO "C54"]
[WhiteElo "1759"]
[BlackElo "1909"]
[PlyCount "68"]
[EventDate "2024.09.05"]
[EventType "team-tourn"]
[EventCountry "HUN"]
[WhiteTeam "Saint Lucia"]
[BlackTeam "Netherlands Antilles"]
[BlackTeamCountry "AHO"]
[TimeControl "40/5400+30:1800+30"]

1. e4 e5 2. Nf3 Nc6 3. Bc4 Nf6 4. d3 Bc5 5. O-O d6 6. c3 O-O 7. Bg5 h6 8. Bh4 Bb6 9. Nbd2 a6 10. Bb3 g5 11. Bg3 Ba7 12. Re1 Be6 13. Nf1 Bxb3 14. Qxb3 Qd7 15. Ne3 Ne7 16. Rad1 Qb5 17. Qc2 Nh5 18. d4 Nxg3 19. hxg3 f6 20. a4 Qb6 21. g4 Kg7 22. Nh2 exd4 23. cxd4 Qc6 24. Qb3 Qd7 25. Nhf1 Nc6 26. Nf5+ Kh7 27. Qh3 Kg8 28. Nxh6+ Kg7 29. Nf5+ Kg8 30. Qb3+ Kh8 31. Re3 Rf7 32. Rh3+ Rh7 33. Rxh7+ Kxh7 34. Rd3 Kg6 1-0

[Event "45th FIDE Olympiad 2024"]
[Site "Budapest"]
[Date "2024.09.14"]
[Round "4.45"]
[White "Neiksans, Arturs"]
[Black "Gurel, Ediz"]
[Result "0-1"]
[ECO "E14"]
[WhiteElo "2571"]
[BlackElo "2602"]
[Annotator "TA"]
[PlyCount "58"]
[EventDate "2024.09.05"]
[EventType "team-tourn"]
[EventCountry "HUN"]
[SourceTitle "playchess.com"]
[Source "ChessBase"]
[SourceQuality "1"]
[WhiteTeam "Latvia"]
[BlackTeam "Turkiye"]
[WhiteTeamCountry "LAT"]
[TimeControl "40/5400+30:1800+30"]

{[%evp 18,58,10,0,0,0,4,0,0,0,0,-1,6,-19,-10,-15,-16,-21,-17,-22,-15,0,-8,-4,-5,-39,-25,-58,-63,-55,-61,-87,-90,-115,-96,-233,-228,-207,-182,-663,-651,-604,-666]} 1. d4 {[%emt 0:00:03]} Nf6 {[%emt 0:00:34]} 2. c4 {[%emt 0:00:16]} e6 {[%emt 0:00:13]} 3. Nf3 {[%emt 0:00:18]} d5 {[%emt 0:01:01]} 4. e3 {[%emt 0:00:25]} Be7 {[%emt 0:02:55]} 5. b3 {[%emt 0:00:33]} O-O {[%emt 0:01:05]} 6. Bb2 {[%emt 0:00:12]} b6 {[%emt 0:02:18]} 7. Nbd2 {[%emt 0:04:10]} Bb7 {[%emt 0:00:31]} 8. Bd3 {[%emt 0:02:43]} Nbd7 {[%emt 0:02:31]} 9. O-O {[%emt 0:02:27]} c5 {[%emt 0:02:31]} 10. Rc1 {[%emt 0:04:11]} Rc8 {[%emt 0:01:02]} 11. Qe2 {[%emt 0:02:04]} Rc7 {[%emt 0:06:51]} 12. a3 {[%emt 0:14:14]} Qa8 {[%emt 0:06:17] The position is equal.} 13. cxd5 {[%emt 0:05:41]} Nxd5 {[%emt 0:03:53]} 14. Ne5 {[%emt 0:15:59]} N5f6 {[%emt 0:14:36][%cal Bd5f6,Bf6d7,Bd7c5,Bc5a4,Ba4c3][%mdl 32]} 15. f3 {[%emt 0:04:17]} Rfc8 {[%emt 0:02:58]} 16. Nxd7 {[%emt 0:10:47]} Nxd7 {[%emt 0:01:21]} 17. dxc5 {[%emt 0:00:08]} Nxc5 {[%emt 0:09:16]} 18. Bc4 {[%emt 0:01:23]} Bd5 {[%emt 0:06:32]} 19. Rfd1 {[%emt 0:03:28]} h6 {[%emt 0:03:53]} 20. b4 {[%emt 0:10:06] [#] Threatens to win with Bxd5.} Bxc4 {[%emt 0:04:16]} 21. Rxc4 {[%emt 0:03:31]} Na4 {[%emt 0:01:39]} 22. Bd4 {[%emt 0:05:12]} Rxc4 {[%emt 0:00:39]} 23. Nxc4 {[%emt 0:00:04]} Qd5 {[%emt 0:05:20]} 24. Ne5 {[%emt 0:02:13]} Qb3 {[%emt 0:01:27][%cal Oa4c3] Black is more active.} 25. Qd3 {[%emt 0:06:38] [#]} Nc3 $1 {[%emt 0:01:54]} 26. Rd2 {[%emt 0:00:04] Now White is beyond hope.} ({Don't go for} 26. Rc1 $2 Ne2+ (26... Qxa3 $2 {is the wrong capture.} 27. Rxc3 Rxc3 28. Qxc3 $18) 27. Kf2 Nxc1 $19) (26. Ra1 $17) 26... Qxa3 $19 {[%emt 0:01:07]} 27. Rc2 {[%emt 0:00:11][%cal Rc2c3] Prevents Qc1+} Bxb4 {[%emt 0:00:54] aiming for ...Qb3.} 28. Nc4 $2 {[%emt 0:02:38]} (28. h3) 28... Qa1+ {[%emt 0:00:43]} 29. Kf2 {[%emt 0:00:07]} Qa6 {[%emt 0:00:57] Weighted Error Value: White=0.50/Black=0.01 (flawless) .  Mistake:       	White=2     	---        Inaccurate:     	White=3     	---        OK:         	White=9     	Black=7      Best:        	---       	Black=2      Strong:       	---       	Black=1} 0-1

[Event "45th FIDE Olympiad 2024"]
[Site "Budapest"]
[Date "2024.09.14"]
[Round "4.45"]
[White "Aziz, Husain"]
[Black "Chinchilla, Alejandro Jose"]
[Result "1-0"]
[ECO "D02"]
[WhiteElo "2340"]
[BlackElo "2113"]
[PlyCount "191"]
[EventDate "2024.09.05"]
[EventType "team-tourn"]
[EventCountry "HUN"]
[WhiteTeam "Qatar"]
[BlackTeam "Honduras"]
[WhiteTeamCountry "QAT"]
[BlackTeamCountry "HON"]
[TimeControl "40/5400+30:1800+30"]

1. d4 d5 2. Nf3 Nf6 3. c3 c5 4. dxc5 e6 5. b4 a5 6. e3 Be7 7. Bb2 b6 8. Bb5+ Bd7 9. Bxd7+ Nfxd7 10. O-O bxc5 11. b5 a4 12. c4 Bf6 13. Bxf6 Qxf6 14. Nbd2 Nb6 15. Rc1 N8d7 16. cxd5 exd5 17. e4 d4 18. e5 Qf5 19. Re1 O-O 20. Ne4 Qe6 21. Nxc5 Nxc5 22. Rxc5 Qxa2 23. Qxd4 Rad8 24. Qe4 h6 25. h3 Rd5 26. Rc6 Rxb5 27. e6 fxe6 28. Rc7 e5 29. Rb7 Rf7 30. Rd1 Rd5 31. Rb8+ Rf8 32. Rxd5 Qxd5 33. Rxf8+ Kxf8 34. Qb4+ Kg8 35. Qxb6 a3 36. Qa7 a2 37. Ne1 Qd2 38. Qb8+ Kh7 39. Qxe5 Qd1 40. Qe4+ Kh8 41. Qe8+ Kh7 42. Qe4+ Kh8 43. Qa8+ Kh7 44. Qxa2 Qxe1+ 45. Kh2 Qe5+ 46. g3 Qe4 47. Qf7 Kh8 48. g4 Qe5+ 49. Kg2 Qe4+ 50. Qf3 Qe8 51. h4 Qd8 52. Kh3 Qc8 53. Qd5 Qc3+ 54. Kg2 Qb4 55. Qd8+ Kh7 56. Qd3+ Kh8 57. Qf5 Qb7+ 58. Kg3 Qb3+ 59. Qf3 Qb8+ 60. Qf4 Qb3+ 61. Kh2 Qb6 62. g5 hxg5 63. hxg5 Kg8 64. Kg3 g6 65. Qc4+ Kg7 66. Qc3+ Kg8 67. Qc8+ Kf7 68. Qd7+ Kf8 69. Qd5 Kg7 70. Kf3 Kf8 71. Qe5 Qc6+ 72. Kg3 Qb6 73. Qe3 Qa6 74. Qc5+ Kg7 75. Qd4+ Kg8 76. Kf4 Qc6 77. Ke5 Qe8+ 78. Kf4 Qc6 79. Kg3 Qc7+ 80. f4 Qc2 81. Qe3 Qb1 82. Kf3 Kg7 83. Qc3+ Kg8 84. Qc4+ Kg7 85. Ke3 Qe1+ 86. Kd4 Qa1+ 87. Qc3 Qb1 88. Ke5 Qb6 89. Kd5+ Kf7 90. Qc4 Kg8 91. Qc8+ Kg7 92. Qd7+ Kh8 93. Qe8+ Kg7 94. Qe7+ Kh8 95. Qf6+ Qxf6 96. gxf6 1-0

[Event "45th FIDE Olympiad 2024"]
[Site "Budapest"]
[Date "2024.09.14"]
[Round "4.46"]
[White "Erdogmus, Yagiz Kaan"]
[Black "Meshkovs, Nikita"]
[Result "1-0"]
[ECO "D35"]
[WhiteElo "2592"]
[BlackElo "2534"]
[Annotator "TA"]
[PlyCount "83"]
[EventDate "2024.09.05"]
[EventType "team-tourn"]
[EventCountry "HUN"]
[SourceTitle "playchess.com"]
[Source "ChessBase"]
[SourceQuality "1"]
[WhiteTeam "Turkiye"]
[BlackTeam "Latvia"]
[BlackTeamCountry "LAT"]
[TimeControl "40/5400+30:1800+30"]

{[%evp 10,83,14,18,35,33,35,22,17,12,19,22,16,10,21,17,31,16,92,98,120,80,123,31,60,64,55,40,58,38,55,46,51,41,42,50,49,45,53,50,75,80,131,96,187,177,189,190,182,191,201,219,210,205,222,183,172,160,830,273,842,825,866,860,873,871,1068,1080,1077,1080,1073,1042,963,772,772,754]} 1. c4 {[%emt 0:00:10]} e6 {[%emt 0:00:38]} 2. Nc3 {[%emt 0:00:05]} d5 {[%emt 0:00:28]} 3. d4 {[%emt 0:00:06]} Nf6 {[%emt 0:00:25]} 4. cxd5 {[%emt 0:00:39]} exd5 {[%emt 0:00:17]} 5. Bg5 {[%emt 0:00:11]} c6 {[%emt 0:00:27]} 6. e3 {[%emt 0:00:17]} Be6 {[%emt 0:00:26]} 7. Bd3 {[%emt 0:02:29]} Nbd7 {[%emt 0:00:10]} 8. Nge2 {[%emt 0:10:36]} h6 {[%emt 0:00:13] The position is equal.} 9. Bf4 {[%emt 0:05:16]} g5 {[%emt 0:00:12]} 10. Bg3 {[%emt 0:01:07]} Nh5 {[%emt 0:00:08]} 11. O-O {[%emt 0:05:10]} Nxg3 {[%emt 0:00:06]} 12. Nxg3 {[%emt 0:02:42]} h5 {[%emt 0:00:08]} 13. e4 {[%emt 0:11:18] And now exd5 would win.} Qf6 {[%emt 0:24:24]} (13... Nf6 $11 {keeps the balance.}) 14. exd5 $16 {[%emt 0:13:48]} (14. Nxh5 $6 Qh6 15. exd5 cxd5 $11) 14... cxd5 {[%emt 0:00:07]} 15. Rc1 {[%emt 0:14:15] Nb5 would now be deadly.} (15. Nxh5 $6 Qh6 16. f4 (16. Nb5 Kd8 $17) 16... gxf4 $11 (16... Qxh5 17. Qxh5 Rxh5 18. f5 $11)) 15... Bd6 {[%emt 0:08:31] [#]} 16. Qc2 {[%emt 0:05:16]} ({Not} 16. Nxh5 Bxh2+ 17. Kxh2 g4 $15) ({Of course not} 16. Nb5 $6 Bf4 $11) (16. Nge2 $1 $16) 16... Bf4 {[%emt 0:21:49]} 17. Rce1 {[%emt 0:00:32] Black must now prevent Nf5.} Kf8 {[%emt 0:05:28]} 18. Nf5 {[%emt 0:00:29] g3 is the strong threat.} Rd8 {[%emt 0:06:11]} 19. g3 {[%emt 0:04:15]} Bb8 {[%emt 0:01:12]} 20. Nd1 $1 {[%emt 0:00:20][%cal Bc3d1,Bd1e3,Be3f5,Bf5e7][%mdl 32]} Bxf5 {[%emt 0:05:01]} 21. Bxf5 {[%emt 0:00:06][%cal Bd3f5,Bf5h3,Bh3g2][%mdl 32]} Nb6 $1 {[%emt 0:00:10]} 22. Qd3 {[%emt 0:02:16]} Nc4 {[%emt 0:04:47]} 23. Ne3 {[%emt 0:05:08]} (23. Bh3 {is more complex.} Qg6 24. Qe2 Qe4 25. Bg2) 23... Kg7 {[%emt 0:02:19]} 24. Bh3 {[%emt 0:02:36]} Qg6 {[%emt 0:05:12]} 25. Nf5+ {[%emt 0:01:44] White now steadily converts the win.} Kh7 {[%emt 0:00:02]} ({Better is} 25... Kf8) 26. Qd1 {[%emt 0:04:07]} g4 {[%emt 0:03:28]} (26... Nxb2 $16 {was called for.} 27. Qb1 g4) 27. Ne7 $18 {[%emt 0:00:22]} Qg5 {[%emt 0:00:27]} 28. f4 {[%emt 0:02:33]} Qf6 {[%emt 0:03:29]} 29. Bg2 {[%emt 0:00:10]} Nb6 {[%emt 0:01:50]} 30. Qd3+ {[%emt 0:00:48]} Kg7 {[%emt 0:00:13]} 31. Nf5+ {[%emt 0:01:58]} Kg8 {[%emt 0:01:36]} 32. Re2 {[%emt 0:00:24]} Bd6 {[%emt 0:03:33]} 33. Rfe1 {[%emt 0:00:22]} Qg6 $2 {[%emt 0:00:33] [#]} (33... Kf8 $16 34. a3 Qg6) 34. Re7 $2 {[%emt 0:03:31]} (34. Re6 $1 {[%mdl 512]}) 34... h4 $2 {[%emt 0:01:22] [#]} (34... Kf8) 35. R7e6 $3 {[%emt 0:01:29][%mdl 512] White is clearly winning.} Qxe6 {[%emt 0:01:14]} (35... Qh5 36. Rxd6) 36. Rxe6 {[%emt 0:00:03]} fxe6 {[%emt 0:00:06]} 37. Nxd6 {Threatening mate with Qg6+.} Rxd6 {[%emt 0:00:00]} 38. Qg6+ {[%emt 0:01:04]} Kf8 {[%emt 0:00:02]} 39. Qf6+ {[%emt 0:01:08]} Kg8 {[%emt 0:00:00]} 40. f5 {[%emt 0:00:05]} hxg3 {[%emt 0:03:06]} 41. Qg6+ {[%emt 0:31:03]} Kf8 {[%emt 0:02:57]} 42. fxe6 {[%emt 0:00:00] Weighted Error Value: White=0.33/Black=0.19 (very precise) .  Loses game:     	---       	Black=1      Mistake:       	White=2     	Black=4      Inaccurate:     	White=1     	Black=2      OK:         	White=13    	Black=13     Best:        	White=2     	Black=2      Strong:       	White=1     	Black=1} 1-0

[Event "45th FIDE Olympiad 2024"]
[Site "Budapest"]
[Date "2024.09.14"]
[Round "4.46"]
[White "Colindres, Daniel"]
[Black "Erfan Mohamad Firdaus"]
[Result "0-1"]
[ECO "C56"]
[WhiteElo "2079"]
[BlackElo "1758"]
[PlyCount "136"]
[EventDate "2024.09.05"]
[EventType "team-tourn"]
[EventCountry "HUN"]
[WhiteTeam "Honduras"]
[BlackTeam "Qatar"]
[WhiteTeamCountry "HON"]
[BlackTeamCountry "QAT"]
[TimeControl "40/5400+30:1800+30"]

1. e4 e5 2. Nf3 Nc6 3. d4 exd4 4. Bc4 Nf6 5. e5 d5 6. Bb5 Nd7 7. O-O Be7 8. Re1 O-O 9. Nbd2 a6 10. Bxc6 bxc6 11. Nxd4 Nb8 12. Qf3 Re8 13. Nf1 c5 14. Nf5 Bf8 15. N1g3 Nc6 16. Bf4 Be6 17. Qh5 g6 18. Nh6+ Kh8 19. Qf3 Nd4 20. Qd3 g5 21. Bc1 Bxh6 22. c3 Nc6 23. h4 gxh4 24. Nh5 Bg7 25. Bh6 Rg8 26. Bxg7+ Rxg7 27. Nxg7 Kxg7 28. f4 Qd7 29. Qe3 Rg8 30. Qf2 h3 31. gxh3 Kh8+ 32. Kh2 Bxh3 33. Rg1 Bg4 34. Rg3 Rg6 35. Qxc5 Ne7 36. Rag1 h5 37. Rd3 Qd8 38. Rg2 c6 39. c4 Nf5 40. Qf2 Qh4+ 41. Qxh4 Nxh4 42. Rf2 dxc4 43. Rd6 Kg7 44. Rc2 Nf3+ 45. Kh1 Rxd6 46. exd6 Kf6 47. Rxc4 Bd7 48. Ra4 Bc8 49. d7 Bxd7 50. Rxa6 Ke6 51. Ra5 h4 52. Kg2 Ne1+ 53. Kh3 Nd3 54. b3 Nxf4+ 55. Kxh4 Nd5 56. Rc5 f5 57. a3 Kd6 58. Rc4 c5 59. Kg5 Ne3 60. Rc3 f4 61. Rd3+ Nd5 62. Rd2 Ke5 63. Rc2 f3 64. a4 Kd4 65. Rd2+ Ke4 66. a5 Bb5 67. Kg4 Ne3+ 68. Kh3 Be2 {0-} 0-1

[Event "45th FIDE Olympiad 2024"]
[Site "Budapest"]
[Date "2024.09.14"]
[Round "4.47"]
[White "Kantans, Toms"]
[Black "Sanal, Vahap"]
[Result "1/2-1/2"]
[ECO "C41"]
[WhiteElo "2486"]
[BlackElo "2581"]
[Annotator "TA"]
[PlyCount "148"]
[EventDate "2024.09.05"]
[EventType "team-tourn"]
[EventCountry "HUN"]
[SourceTitle "playchess.com"]
[Source "ChessBase"]
[SourceQuality "1"]
[WhiteTeam "Latvia"]
[BlackTeam "Turkiye"]
[WhiteTeamCountry "LAT"]
[TimeControl "40/5400+30:1800+30"]

{[%evp 60,148,8,3,19,14,10,0,0,0,79,79,79,79,79,79,79,79,80,80,80,80,87,87,87,72,95,95,95,95,95,95,95,95,95,95,94,24,94,21,21,20,39,39,46,46,86,54,79,20,20,20,20,20,20,20,20,20,20,20,20,20,20,20,20,20,20,20,20,17,16,16,16,16,16,16,15,13,13,0,0,0,9,0,0,0,0,0,0,0,0]} 1. e4 {[%emt 0:00:04]} d6 {[%emt 0:00:12]} 2. d4 {[%emt 0:00:25]} Nf6 {[%emt 0:00:07]} 3. Nc3 {[%emt 0:00:06]} e5 {[%emt 0:00:07]} 4. Nf3 {[%emt 0:00:36]} Nbd7 {[%emt 0:00:09]} 5. Bc4 {[%emt 0:01:04]} Be7 {[%emt 0:00:09]} 6. O-O {[%emt 0:01:52]} O-O {[%emt 0:00:14]} 7. Re1 {[%emt 0:03:09]} c6 {[%emt 0:00:16]} 8. a4 {[%emt 0:00:09]} h6 {[%emt 0:03:27] is the new trend.} 9. h3 {[%emt 0:03:46]} Re8 {[%emt 0:01:23]} 10. a5 {[%emt 0:12:41] C41: Philidor Defence.} Rb8 {[%emt 0:00:42]} 11. Be3 {[%emt 0:15:40]} b5 {[%emt 0:01:46]} 12. axb6 {[%emt 0:00:07]} axb6 {[%emt 0:00:09]} 13. d5 {[%emt 0:01:04]} Bb7 {[%emt 0:03:52]} 14. Ra7 {[%emt 0:07:25]} b5 {[%emt 0:12:02]} 15. Rxb7 {[%emt 0:11:35]} Rxb7 {[%emt 0:02:21]} 16. dxc6 {[%emt 0:00:06]} bxc4 {[%emt 0:00:16]} 17. cxb7 {[%emt 0:00:05]} Qc7 {[%emt 0:03:20]} 18. Nd2 {[%emt 0:00:08]} Rb8 $146 {[%emt 0:06:51]} ({Predecessor:} 18... Qxb7 19. Nxc4 Qb4 20. Qd3 d5 21. exd5 e4 22. Qe2 Rc8 23. Nd2 Qxb2 24. Ncxe4 Rxc2 25. d6 Bf8 26. Qd3 Rc1 27. Rxc1 Qxc1+ 28. Kh2 Qc6 29. Nxf6+ {½-½ Hamblok,R (2320)-Hopman,P (2335) Wachtebeke 2017 (2)}) 19. Qa1 {[%emt 0:00:22]} Rxb7 {[%emt 0:05:58]} 20. Rb1 {[%emt 0:03:04]} Rb4 {[%emt 0:08:45]} 21. Qa3 {[%emt 0:08:58]} Qb7 {[%emt 0:04:26]} 22. f3 {[%emt 0:11:49]} Bf8 {[%emt 0:01:52]} 23. Qa7 {[%emt 0:03:53]} Qc6 {[%emt 0:01:09]} 24. Qa5 {[%emt 0:01:25]} Rb8 {[%emt 0:02:56]} 25. Qa4 {[%emt 0:02:43]} Qxa4 {[%emt 0:03:41]} 26. Nxa4 {[%emt 0:00:02]} d5 {[%emt 0:01:23]} 27. exd5 {[%emt 0:00:07]} Nxd5 {[%emt 0:00:06]} 28. Nxc4 {[%emt 0:05:18]} Rb4 {[%emt 0:00:30]} 29. b3 {[%emt 0:00:07]} Rxc4 {[%emt 0:00:18]} 30. bxc4 {[%emt 0:00:03]} Nxe3 {[%emt 0:00:05]} 31. Rb7 {[%emt 0:00:04]} Nc5 {[%emt 0:01:50]} 32. Nxc5 {[%emt 0:00:06]} Bxc5 {[%emt 0:00:06]} 33. Rb5 {[%emt 0:03:38]} Bd4 {[%emt 0:02:47]} (33... Nxc4+ 34. Rxc5 Na3 35. Rc8+ (35. Rxe5 Nxc2 36. Re8+ Kh7 $18) 35... Kh7 36. c4 $18) 34. c5 {[%emt 0:02:07]} Nxc2+ {[%emt 0:11:31]} (34... Nd5+ $11 35. Kf1 Ne7) 35. Kh1 $16 {[%emt 0:00:20]} Kf8 {[%emt 0:03:58]} 36. c6 {[%emt 0:00:36]} Ke7 {[%emt 0:01:54]} 37. Rd5 $1 {[%emt 0:03:23]} Bb6 {[%emt 0:06:06] [#]} 38. c7 $1 {[%emt 0:00:28]} Bxc7 {[%emt 0:00:02]} 39. Rc5 {[%emt 0:00:04]} Nd4 {[%emt 0:01:45]} 40. Rxc7+ {[%emt 0:00:04]} Kf6 {[%emt 0:00:04]} 41. h4 {[%emt 0:03:38]} h5 {[%emt 0:02:13]} 42. Kg1 {[%emt 0:01:53]} g6 {[%emt 0:00:14]} 43. Kf2 {[%emt 0:00:23]} Nf5 {[%emt 0:00:17]} 44. g3 {[%emt 0:00:43]} Ke6 {[%emt 0:00:34]} 45. Ra7 {[%emt 0:00:07]} Kf6 {[%emt 0:00:35]} 46. Ra6+ {[%emt 0:01:33]} Ke7 {[%emt 0:00:14]} 47. Ra1 {[%emt 0:01:48]} Kf6 {[%emt 0:00:27]} 48. Rh1 {[%emt 0:00:30]} (48. Ra7 $16) 48... Nh6 {[%emt 0:00:14]} (48... g5 $1 $11 {remains equal.}) 49. Ke2 {[%emt 0:01:29]} (49. Rd1 $16) 49... Nf5 $11 {[%emt 0:00:50]} 50. Rh3 {[%emt 0:00:34]} Nh6 {[%emt 0:00:17]} 51. Kd3 {[%emt 0:00:58]} Ke6 {[%emt 0:02:07]} 52. Rh2 {[%emt 0:04:45]} Kd5 {[%emt 0:04:38]} 53. Ra2 {[%emt 0:01:54]} Nf5 {[%emt 0:00:12] [#]} 54. Ra5+ {[%emt 0:00:39]} (54. Rg2 $1 $16) 54... Ke6 $11 {[%emt 0:00:09]} 55. Ra6+ {[%emt 0:00:15]} Kd5 {[%emt 0:02:10]} 56. Rf6 {[%emt 0:05:17]} Nxg3 {[%emt 0:00:15]} 57. Rxf7 {[%emt 0:00:04]} Nf5 {[%emt 0:00:19]} 58. Ra7 {[%emt 0:00:09]} Nxh4 {[%emt 0:00:47]} 59. Ra5+ $1 {[%emt 0:00:07]} Ke6 {[%emt 0:00:11]} 60. Ke4 {[%emt 0:00:06]} Kf6 {[%emt 0:00:27]} 61. Ra6+ {[%emt 0:03:56]} Kg5 {[%emt 0:03:30]} 62. Rb6 {[%emt 0:06:08]} Nf5 {[%emt 0:01:33]} 63. Kxe5 {[%emt 0:00:08]} h4 {[%emt 0:01:32]} 64. f4+ {[%emt 0:02:03]} Kh5 {[%emt 0:00:07]} 65. Ke4 {[%emt 0:00:31]} h3 {[%emt 0:01:10]} 66. Kf3 {[%emt 0:00:04]} Nd4+ {[%emt 0:00:50]} 67. Kf2 {[%emt 0:01:41]} Nf5 {[%emt 0:00:53]} 68. Kg1 {[%emt 0:01:16]} Nh4 {[%emt 0:00:18]} 69. Rf6 {[%emt 0:02:48]} Kg4 {[%emt 0:00:10]} 70. Kh2 {[%emt 0:00:23]} Nf3+ {[%emt 0:00:04]} 71. Kh1 {[%emt 0:00:03]} Nh4 {[%emt 0:00:03]} 72. Rf8 {[%emt 0:00:27]} Ng2 {[%emt 0:00:25]} 73. f5 {[%emt 0:01:02]} gxf5 {[%emt 0:00:07]} 74. Kh2 {[%emt 0:00:13]} Nf4 {[%emt 0:00:39]} 1/2-1/2

[Event "45th FIDE Olympiad 2024"]
[Site "Budapest"]
[Date "2024.09.14"]
[Round "4.47"]
[White "Al Qassabi, Mohammed"]
[Black "Soliz Gabarrete, Luis Fernando"]
[Result "0-1"]
[ECO "B13"]
[WhiteElo "1521"]
[BlackElo "1920"]
[PlyCount "76"]
[EventDate "2024.09.05"]
[EventType "team-tourn"]
[EventCountry "HUN"]
[WhiteTeam "Qatar"]
[BlackTeam "Honduras"]
[WhiteTeamCountry "QAT"]
[BlackTeamCountry "HON"]
[TimeControl "40/5400+30:1800+30"]

1. e4 c6 2. d4 d5 3. exd5 cxd5 4. Bd3 Nc6 5. c3 Nf6 6. h3 e5 7. dxe5 Nxe5 8. Nf3 Nxd3+ 9. Qxd3 Bd6 10. O-O O-O 11. Bg5 h6 12. Bh4 g5 13. Bg3 Bxg3 14. fxg3 Ne4 15. Nd4 f5 16. Nd2 Qd6 17. Nxe4 dxe4 18. Qc4+ Kg7 19. Ne2 Be6 20. Qd4+ Qxd4+ 21. Nxd4 Bd7 22. Rad1 Rae8 23. Nc2 Bb5 24. Rfe1 f4 25. gxf4 gxf4 26. Rd4 Rf7 27. a4 Bc6 28. Nb4 f3 29. Rf1 e3 30. gxf3 Bxf3 31. Nd3 Kh7 32. Rf4 Rg7+ 33. Kh2 Be2 34. Ne1 Bxf1 35. Rxf1 e2 36. Rh1 Rf8 37. Nd3 Rf1 38. Ne1 Rf2+ {0-} 0-1